bitfinex/quotes_BTCUSD_20260125
["timestamp","ask_amount","ask_price","bid_price","bid_amount"]
[1769358095639,0.0004048,87834.0,87801.0,0.01138939]
[1769358095831,0.38369388,87830.0,87799.0,0.00797304]
[1769358096076,1.06224086,87829.0,87799.0,0.00797304]
[1769358096398,0.01138614,87826.0,87787.0,0.0113912]
[1769358096601,0.36974926,87820.0,87784.0,0.01139159]
[1769358096801,1.07362765,87821.0,87782.0,0.01139185]
[1769358097087,0.01138874,87806.0,87777.0,0.17512]
[1769358097428,0.85899847,87809.0,87777.0,0.17512]
[1769358098161,0.85899847,87809.0,87778.0,0.01139237]
[1769358098385,0.85899847,87809.0,87779.0,0.01212213]
[1769358098583,0.85899847,87809.0,87779.0,0.00072989]
[1769358098988,0.85107931,87809.0,87779.0,0.01212213]
[1769358099190,0.84709136,87809.0,87786.0,0.05389323]
[1769358099393,0.37230825,87820.0,87786.0,0.05389323]
[1769358099560,0.6167,87818.0,87786.0,0.05389323]
[1769358099755,0.11070746,87817.0,87787.0,0.01509096]
[1769358100010,0.37230825,87820.0,87787.0,0.01509096]
[1769358100169,0.5428,87818.0,87788.0,0.01581196]
[1769358100373,0.5428,87818.0,87786.0,0.05189323]
[1769358100374,0.4937,87816.0,87789.0,0.01509064]
[1769358100559,0.4942,87819.0,87786.0,0.05189323]
[1769358100763,0.4897,87817.0,87787.0,0.01509046]
[1769358101093,0.11075465,87816.0,87787.0,0.01509046]
[1769358101310,0.11075465,87815.0,87787.0,0.01509046]
[1769358101516,0.01138627,87825.0,87788.0,0.01922864]
[1769358101714,0.11081774,87823.0,87789.0,0.01509022]
[1769358101915,0.01138576,87829.0,87791.0,0.47500701]
[1769358102124,0.5111701,87838.0,87792.0,0.11160278]
[1769358102125,0.84086453,87819.0,87792.0,0.11160278]
[1769358102347,1.06636091,87816.0,87788.0,0.00783757]
[1769358102636,0.00202042,87786.0,87762.0,0.47500701]
[1769358102797,0.00202042,87786.0,87762.0,0.0001419]
[1769358103014,0.37230825,87780.0,87762.0,0.0001419]
[1769358103417,1.0631442,87771.0,87730.0,0.0113986]
[1769358103601,1.0631442,87771.0,87732.0,0.01139834]
[1769358103809,0.01139432,87763.0,87730.0,0.00014218]
[1769358104038,0.37230825,87772.0,87730.0,0.00014218]
[1769358104039,0.38369367,87768.0,87731.0,0.01253831]
[1769358104251,0.0113938,87767.0,87731.0,0.00113984]
[1769358104450,0.2553,87768.0,87732.0,0.08951572]
[1769358104626,0.26669367,87768.0,87733.0,0.00113981]
[1769358104849,0.11091203,87767.0,87733.0,0.00113981]
[1769358105055,1.43545245,87770.0,87733.0,0.00113981]
[1769358105304,1.372284,87768.0,87733.0,0.00113981]
[1769358105523,1.372284,87769.0,87734.0,0.00907981]
[1769358105694,0.11084075,87768.0,87735.0,0.00113978]
[1769358105894,0.12223442,87768.0,87736.0,0.00760381]
[1769358106106,0.12223263,87767.0,87735.0,0.00760381]
[1769358106262,1.43545245,87770.0,87736.0,0.01139782]
[1769358106458,1.0631442,87770.0,87740.0,0.05698618]
[1769358106681,0.4655701,87788.0,87770.0,0.000142]
[1769358106893,0.0456,87799.0,87770.0,0.000142]
[1769358106894,0.37230825,87790.0,87770.0,0.000142]
[1769358107114,0.11078931,87789.0,87770.0,0.000142]
[1769358107282,1.0631442,87794.0,87770.0,0.000142]
[1769358107478,0.11076989,87793.0,87770.0,0.000142]
[1769358107864,0.01139068,87791.0,87770.0,0.000142]
[1769358108061,1.06013058,87789.0,87770.0,0.000142]
[1769358108392,0.10602726,87788.0,87770.0,0.000142]
[1769358108822,1.06636091,87789.0,87757.0,0.00646534]
[1769358109594,0.00014199,87793.0,87758.0,0.01139497]
[1769358109790,0.001,87788.0,87757.0,0.00646534]
[1769358110020,1.06328328,87778.0,87737.0,0.01139769]
[1769358110222,0.01139276,87775.0,87738.0,0.05751563]
[1769358110531,0.01139562,87753.0,87716.0,0.47500701]
[1769358110717,0.3723339,87750.0,87717.0,0.01140029]
[1769358110869,0.3723339,87750.0,87716.0,0.48640743]
[1769358111037,0.38372991,87750.0,87716.0,0.47500701]
[1769358111232,0.3723339,87750.0,87716.0,0.47500701]
[1769358111474,0.3723339,87750.0,87720.0,0.06499551]
[1769358111787,0.3723339,87760.0,87722.0,0.01139964]
[1769358111993,1.15195434,87773.0,87737.0,0.01139769]
[1769358112138,0.11059832,87772.0,87737.0,0.01193561]
[1769358112332,1.23836328,87773.0,87738.0,0.00803246]
[1769358112552,0.05696707,87770.0,87733.0,0.00053792]
[1769358112751,0.01139393,87766.0,87732.0,0.00053792]
[1769358112981,0.01139393,87766.0,87731.0,0.00054009]
[1769358113177,1.06328328,87768.0,87729.0,0.00054009]
[1769358113382,1.06328328,87768.0,87731.0,0.01139847]
[1769358113580,0.11160278,87767.0,87732.0,0.05062319]
[1769358113840,1.06328328,87764.0,87729.0,0.00054259]
[1769358114053,0.3165193,87778.0,87726.0,0.47500701]
[1769358114253,0.3723339,87800.0,87764.0,0.000142]
[1769358114254,0.06834024,87796.0,87764.0,0.000142]
[1769358114410,1.372284,87794.0,87764.0,0.000142]
[1769358114811,0.11160278,87794.0,87764.0,0.000142]
[1769358115013,1.372284,87794.0,87764.0,0.000142]
[1769358115465,0.00014199,87794.0,87764.0,0.000142]
[1769358115821,0.00014199,87794.0,87781.0,0.01139198]
[1769358116023,0.16496397,87826.0,87766.0,0.11844563]
[1769358116024,0.3723339,87820.0,87785.0,0.06834821]
[1769358116278,0.11065214,87819.0,87786.0,0.11160278]
[1769358116457,0.00047356,87820.0,87786.0,0.12299411]
[1769358116660,1.372284,87819.0,87786.0,0.01139133]
[1769358116869,0.00047356,87820.0,87806.0,0.01138874]
[1769358117112,0.0004048,87834.0,87823.0,0.01138653]
[1769358117373,0.1107205,87853.0,87834.0,0.01138511]
[1769358117574,0.0004,87865.0,87836.0,0.01138485]
[1769358117804,0.00054196,87865.0,87835.0,0.02095293]
[1769358118110,0.3723339,87860.0,87835.0,0.02095293]
[1769358118301,0.00054196,87865.0,87831.0,0.0113855]
[1769358118530,0.3723339,87850.0,87814.0,0.0113877]
[1769358118751,0.3723339,87850.0,87816.0,0.01138744]
[1769358118969,0.3723339,87850.0,87814.0,0.0113877]
[1769358119262,0.3723339,87840.0,87806.0,0.47500701]
[1769358119464,0.3723339,87840.0,87802.0,0.18650926]
[1769358119601,0.01138472,87837.0,87802.0,0.17512]
[1769358119808,0.00985799,87817.0,87798.0,0.06833828]
[1769358120001,0.4655701,87844.0,87791.0,1.32831364]
[1769358120002,1.372284,87839.0,87799.0,0.23676856]
[1769358120214,0.3723339,87830.0,87788.0,0.01139107]
[1769358120419,1.372284,87828.0,87792.0,0.01139055]
[1769358120598,0.3723339,87820.0,87786.0,0.0456]
[1769358120783,1.372284,87826.0,87787.0,0.0113912]
[1769358120988,1.372284,87826.0,87789.0,0.01139094]
[1769358121231,0.3723339,87810.0,87786.0,0.04607356]
[1769358121427,0.3723339,87820.0,87786.0,0.04607356]
[1769358121601,0.3723339,87810.0,87786.0,0.04607356]
[1769358121803,0.3723339,87800.0,87768.0,0.01139367]
[1769358121988,0.3723339,87800.0,87767.0,0.0113938]
[1769358121989,0.37280679,87800.0,87767.0,0.0113938]
[1769358122190,0.00047289,87800.0,87767.0,0.0113938]
[1769358122395,0.08867106,87842.0,87805.0,0.01138887]
[1769358122611,0.2484,87844.0,87805.0,0.00014201]
[1769358122940,1.372284,87845.0,87808.0,0.01138848]
[1769358123140,1.372284,87844.0,87818.0,0.01138718]
[1769358123372,0.0113842,87841.0,87805.0,0.00014201]
[1769358123523,0.01138433,87840.0,87805.0,0.00014201]
[1769358123727,0.3723339,87850.0,87805.0,0.00014201]
[1769358123728,0.38371953,87830.0,87805.0,0.00014201]
[1769358123930,0.00971598,87791.0,87766.0,0.01139393]
[1769358124132,0.00014201,87805.0,87761.0,0.04907876]
[1769358124133,0.3723339,87800.0,87784.0,0.00047289]
[1769358124333,1.07247987,87807.0,87784.0,0.00047289]
[1769358125289,1.372284,87811.0,87784.0,0.00047289]
[1769358125437,0.4671,87811.0,87784.0,0.00047289]
[1769358125737,0.0456,87812.0,87784.0,0.00047289]
[1769358126043,0.17504,87829.0,87816.0,0.01138744]
[1769358126176,1.372284,87852.0,87810.0,0.38372212]
[1769358126378,1.7446179,87850.0,87806.0,0.01138874]
[1769358126588,2.43996676,87839.0,87800.0,0.01138952]
[1769358126788,1.372284,87838.0,87801.0,0.06048897]
[1769358127345,1.372284,87836.0,87801.0,0.06048897]
[1769358127553,1.372284,87836.0,87797.0,0.05694952]
[1769358127554,0.01138602,87827.0,87791.0,0.01139068]
[1769358127768,0.0001419,87838.0,87827.0,0.000142]
[1769358127948,0.01138148,87862.0,87829.0,0.000142]
[1769358128116,1.07579459,87865.0,87829.0,0.000142]
[1769358128117,1.07579459,87865.0,87833.0,0.01138524]
[1769358128318,1.07579459,87865.0,87829.0,0.0002839]
[1769358128319,1.07579459,87865.0,87829.0,0.01152766]
[1769358128530,1.07579459,87865.0,87829.0,0.0001419]
[1769358128719,0.3723339,87860.0,87829.0,0.0001419]
[1769358128935,1.07539459,87862.0,87829.0,0.0001419]
[1769358129148,1.07539459,87862.0,87830.0,0.00912315]
[1769358129350,1.07539459,87862.0,87829.0,0.0001419]
[1769358130481,1.07539459,87859.0,87831.0,0.0113855]
[1769358130700,1.07539459,87888.0,87859.0,0.000142]
[1769358131003,1.07539459,87888.0,87865.0,0.01138109]
[1769358131137,0.17504,87900.0,87867.0,0.01122138]
[1769358131335,0.00594553,87899.0,87869.0,0.01138057]
[1769358131728,0.00594553,87899.0,87865.0,0.05690547]
[1769358131926,0.00024198,87879.0,87855.0,0.01138239]
[1769358132130,0.00024198,87879.0,87850.0,0.3723339]
[1769358132131,1.07539459,87878.0,87850.0,0.0569151]
[1769358132381,1.07539459,87878.0,87854.0,0.05691201]
[1769358132585,0.00024198,87879.0,87855.0,0.0056912]
[1769358132883,0.00024198,87879.0,87869.0,0.001]
[1769358133124,0.00024198,87879.0,87855.0,0.0056912]
[1769358133125,0.001,87869.0,87855.0,0.0056912]
[1769358133326,0.001,87869.0,87848.0,0.01138329]
[1769358133460,1.07539459,87878.0,87839.0,0.01138446]
[1769358133647,1.07539459,87878.0,87840.0,0.03073953]
[1769358133857,1.07539459,87878.0,87839.0,0.01138446]
[1769358134059,1.07539459,87878.0,87834.0,0.0569254]
[1769358134060,1.07539459,87878.0,87832.0,0.05692628]
[1769358134345,0.3723339,87870.0,87835.0,0.01138498]
[1769358134548,1.07539459,87869.0,87835.0,0.01138498]
[1769358134668,1.07539459,87869.0,87834.0,0.01138511]
[1769358134869,1.07539459,87869.0,87837.0,0.01138472]
[1769358135119,1.07539459,87869.0,87836.0,0.01138485]
[1769358135370,1.07539459,87869.0,87835.0,0.01991386]
[1769358135608,1.07539459,87869.0,87835.0,0.00852888]
[1769358135811,0.00024198,87879.0,87849.0,0.01138316]
[1769358135986,0.175,87873.0,87852.0,0.01138278]
[1769358136289,0.00024198,87879.0,87850.0,0.3723339]
[1769358136492,0.00024198,87879.0,87859.0,0.01138187]
[1769358136721,0.00024198,87879.0,87850.0,0.3723339]
[1769358136722,0.00024198,87879.0,87861.0,0.01138161]
[1769358136937,0.00024198,87879.0,87851.0,0.11845372]
[1769358136938,0.0007756,87881.0,87865.0,0.01138109]
[1769358137125,0.0007756,87881.0,87865.0,0.00014198]
[1769358140148,0.04094553,87899.0,87881.0,0.000142]
[1769358140149,0.00594553,87899.0,87881.0,0.000142]
[1769358141880,0.00594553,87899.0,87890.0,0.01137785]
[1769358142112,0.00594553,87899.0,87885.0,0.0113785]
[1769358142339,0.0004,87912.0,87890.0,0.01137785]
[1769358142570,0.0004,87912.0,87904.0,0.01137604]
[1769358142804,0.0004,87912.0,87902.0,0.0115183]
[1769358143017,0.0004,87912.0,87905.0,0.01137591]
[1769358143227,0.0004,87924.0,87908.0,0.01137552]
[1769358143424,0.0004,87924.0,87909.0,0.00682969]
[1769358143738,0.00087338,87918.0,87905.0,0.01137591]
[1769358143973,0.00087338,87918.0,87895.0,0.47039212]
[1769358144193,0.00087338,87918.0,87895.0,0.48176933]
[1769358144427,0.00087338,87918.0,87891.0,0.01137772]
[1769358144631,0.00087338,87918.0,87890.0,0.01137785]
[1769358144875,0.00087338,87918.0,87891.0,0.00796469]
[1769358145067,0.00087338,87918.0,87880.0,0.47039212]
[1769358145068,0.00087338,87918.0,87888.0,0.01137811]
[1769358145271,0.00087338,87918.0,87885.0,0.0113785]
[1769358145628,0.00087338,87918.0,87903.0,0.01137617]
[1769358146006,0.0004,87924.0,87918.0,4.201e-05]
[1769358146142,0.0005419,87924.0,87909.0,0.001]
[1769358146344,0.0005419,87924.0,87909.0,0.01137539]
[1769358146549,0.0005419,87924.0,87838.0,0.042137]
[1769358146550,0.01137889,87882.0,87838.0,0.042137]
[1769358146756,0.01137889,87882.0,87810.0,0.13672]
[1769358146757,0.01138031,87871.0,87829.0,0.01138576]
[1769358146958,0.01138031,87871.0,87813.0,0.47039212]
[1769358146959,1.223177,87871.0,87832.0,0.01138537]
[1769358147164,0.0113807,87868.0,87813.0,0.47039212]
[1769358147348,4.7,87867.0,87813.0,0.47039212]
[1769358147554,1.11157422,87849.0,87814.0,0.11845372]
[1769358147773,1.11157422,87849.0,87815.0,0.11845372]
[1769358148003,0.06829279,87857.0,87816.0,0.13604123]
[1769358148271,0.08842705,87885.0,87816.0,0.13604123]
[1769358148272,0.020736,87860.0,87835.0,0.11845372]
[1769358148479,0.22184324,87927.0,87857.0,4.201e-05]
[1769358148480,0.48584098,87893.0,87857.0,4.201e-05]
[1769358148652,1.11157422,87886.0,87857.0,4.201e-05]
[1769358148860,0.01137889,87882.0,87857.0,4.201e-05]
[1769358149065,1.11157422,87881.0,87857.0,4.201e-05]
[1769358149269,1.11157422,87881.0,87844.0,0.04556]
[1769358149616,1.11157422,87881.0,87844.0,0.04603338]
[1769358149818,0.01137928,87879.0,87844.0,0.04603338]
[1769358150041,1.11157422,87883.0,87844.0,0.04603338]
[1769358150267,1.11157422,87883.0,87848.0,0.01138329]
[1769358150451,1.11157422,87901.0,87852.0,0.47039212]
[1769358150624,0.01137462,87915.0,87865.0,0.47039212]
[1769358150825,0.01137565,87907.0,87865.0,0.48177321]
[1769358151066,1.11157422,87909.0,87871.0,0.01138031]
[1769358151282,0.04556,87920.0,87879.0,0.01137928]
[1769358151428,0.04556,87920.0,87866.0,0.16890731]
[1769358151429,0.00594413,87923.0,87886.0,0.01137837]
[1769358151638,0.00594413,87923.0,87883.0,0.48177088]
[1769358151838,0.00594413,87923.0,87884.0,0.05500894]
[1769358152036,1.12294793,87922.0,87880.0,0.04556]
[1769358152237,0.05686923,87921.0,87880.0,0.04556]
[1769358152454,0.01137578,87906.0,87880.0,0.04556]
[1769358152831,1.11157422,87909.0,87880.0,0.04556]
[1769358153030,1.12294961,87909.0,87880.0,0.04556]
[1769358153231,0.01137591,87905.0,87880.0,0.04556]
[1769358153436,0.08842705,87939.0,87880.0,0.04556]
[1769358153642,0.13309215,87949.0,87880.0,0.04556]
[1769358153643,0.01137384,87921.0,87880.0,0.04556]
[1769358153843,0.01137423,87918.0,87880.0,0.04556]
[1769358154098,1.07197283,87921.0,87880.0,0.04556]
[1769358154321,0.01137527,87910.0,87881.0,0.00163816]
[1769358154502,1.07197283,87909.0,87882.0,0.00551167]
[1769358154743,0.01137591,87905.0,87880.0,0.04556]
[1769358154950,0.0113763,87902.0,87880.0,0.04556]
[1769358155092,1.07197283,87904.0,87880.0,0.04556]
[1769358155297,1.08334887,87904.0,87880.0,0.04556]
[1769358155503,0.0003676,87909.0,87881.0,0.00551479]
[1769358155746,0.01137643,87901.0,87881.0,0.00551479]
[1769358155906,0.0003676,87909.0,87880.0,0.04556]
[1769358155907,0.01174299,87909.0,87880.0,0.04556]
[1769358156108,0.01137591,87905.0,87880.0,0.04556]
[1769358156318,0.01137734,87894.0,87860.0,0.04556]
[1769358156668,0.01174481,87895.0,87860.0,0.04556]
[1769358156868,0.0003676,87895.0,87861.0,0.00569425]
[1769358157114,0.01137734,87894.0,87861.0,0.00569425]
[1769358157304,0.01137798,87889.0,87860.0,0.04556]
[1769358157450,1.07197283,87890.0,87860.0,0.04603338]
[1769358158210,0.01174481,87895.0,87860.0,0.04603338]
[1769358158211,0.0003676,87895.0,87860.0,0.04603338]
[1769358158641,0.11133033,87895.0,87860.0,0.04603338]
[1769358158872,0.11133033,87895.0,87875.0,0.06827843]
[1769358158873,0.11096273,87894.0,87875.0,0.06827843]
[1769358159089,0.0003676,87895.0,87872.0,0.00839525]
[1769358159305,0.0003676,87895.0,87871.0,0.11845372]
[1769358159524,0.0003676,87895.0,87870.0,0.45525104]
[1769358159721,0.0003676,87895.0,87871.0,0.04780132]
[1769358159924,0.0003676,87895.0,87861.0,0.0244164]
[1769358160127,0.01137785,87890.0,87855.0,0.45525104]
[1769358160280,1.07197283,87894.0,87860.0,0.05741512]
[1769358160480,0.0003676,87895.0,87860.0,0.05741512]
[1769358160704,0.0003676,87895.0,87860.0,0.04603338]
[1769358160881,0.0003676,87895.0,87860.0,0.05741512]
[1769358161084,0.0003676,87895.0,87861.0,0.07677029]
[1769358161607,0.0003676,87895.0,87861.0,0.0881519]
[1769358161819,0.0003676,87895.0,87868.0,0.0113807]
[1769358162023,0.0003676,87895.0,87865.0,0.01138109]
[1769358162225,0.0003676,87895.0,87861.0,0.0544993]
[1769358162454,1.07234043,87895.0,87866.0,0.01138096]
[1769358162607,0.0003676,87895.0,87869.0,0.01138057]
[1769358162808,0.0003676,87895.0,87866.0,0.01138096]
[1769358163353,0.0003676,87895.0,87867.0,0.01138083]
[1769358163554,0.0003676,87895.0,87863.0,0.51215773]
[1769358163753,0.0003676,87895.0,87864.0,0.06969548]
[1769358164155,0.0003676,87895.0,87862.0,0.05909301]
[1769358164156,1.07197283,87894.0,87862.0,0.05909301]
[1769358164381,1.07197283,87894.0,87860.0,0.04603338]
[1769358164600,1.07197283,87889.0,87860.0,0.04603338]
[1769358164967,0.37149218,87880.0,87860.0,0.04603338]
[1769358165833,1.07197283,87887.0,87860.0,0.04603338]
[1769358166063,0.01137643,87901.0,87862.0,0.01138148]
[1769358166269,0.01137643,87901.0,87863.0,0.06378613]
[1769358166432,0.08886368,87904.0,87871.0,0.01138031]
[1769358166763,1.07197283,87906.0,87868.0,0.45525104]
[1769358166908,1.07197283,87906.0,87869.0,0.01138057]
[1769358167094,0.08886368,87914.0,87875.0,0.0113798]
[1769358167295,0.01137488,87913.0,87876.0,0.08495031]
[1769358167698,1.07197283,87915.0,87878.0,0.05689663]
[1769358167914,0.01137488,87913.0,87878.0,0.17488]
[1769358168132,0.37149218,87910.0,87878.0,0.17488]
[1769358168334,1.07197283,87915.0,87878.0,0.17488]
[1769358168731,1.08334745,87915.0,87878.0,0.17488]
[1769358168914,1.07197283,87915.0,87878.0,0.18625941]
[1769358169099,1.07197283,87906.0,87878.0,0.17488]
[1769358169531,1.07197283,87906.0,87879.0,0.01290332]
[1769358169736,1.07197283,87906.0,87878.0,0.17488]
[1769358169978,1.07197283,87894.0,87878.0,0.16356503]
[1769358170389,0.01137617,87903.0,87860.0,0.10294197]
[1769358170390,1.07197283,87887.0,87860.0,0.04603338]
[1769358170560,0.01137811,87888.0,87860.0,0.04603338]
[1769358170561,1.07197283,87879.0,87860.0,0.04603338]
[1769358170765,1.07197283,87877.0,87860.0,0.04603338]
[1769358172679,1.07197283,87877.0,87860.0,0.04703338]
[1769358172881,1.07197283,87889.0,87860.0,0.04703338]
[1769358173092,0.11113005,87888.0,87860.0,0.04703338]
[1769358173297,0.11113005,87887.0,87860.0,0.04603338]
[1769358173499,0.0003676,87895.0,87887.0,0.00456076]
[1769358173739,1.0833503,87893.0,87860.0,0.04656]
[1769358173944,0.01137811,87888.0,87860.0,0.04656]
[1769358174144,1.44336042,87880.0,87860.0,0.04556]
[1769358174351,0.37138759,87870.0,87846.0,0.17488]
[1769358174544,0.01138057,87869.0,87846.0,0.17488]
[1769358174785,0.37138759,87860.0,87844.0,0.04556]
[1769358175028,0.37138759,87860.0,87822.0,0.01171586]
[1769358175230,1.07197283,87856.0,87822.0,0.01185776]
[1769358175488,0.11160278,87855.0,87823.0,0.06493081]
[1769358175788,0.11160278,87855.0,87824.0,0.01171559]
[1769358175933,1.07197283,87856.0,87824.0,0.01171559]
[1769358176346,1.07197283,87856.0,87825.0,0.11845372]
[1769358176541,1.07197283,87856.0,87826.0,0.01171532]
[1769358177658,0.01138109,87865.0,87826.0,0.01171532]
[1769358177659,1.07197283,87865.0,87826.0,0.01171532]
[1769358177863,1.07197283,87859.0,87827.0,0.02248257]
[1769358178060,1.07197283,87859.0,87829.0,0.01138576]
[1769358178266,1.07197283,87859.0,87830.0,0.01171542]
[1769358178500,1.07197283,87859.0,87822.0,0.01152856]
[1769358178501,1.07197283,87849.0,87822.0,0.0001419]
[1769358178902,0.37138759,87840.0,87822.0,0.0001419]
[1769358179098,0.0001419,87822.0,87793.0,0.04556]
[1769358179314,0.00028365,87822.0,87793.0,0.04556]
[1769358179493,1.07197283,87821.0,87793.0,0.04556]
[1769358179696,0.01138835,87809.0,87793.0,0.04556]
[1769358179904,1.07197283,87799.0,87771.0,0.04556]
[1769358180203,0.01138926,87802.0,87771.0,0.04556]
[1769358180204,1.08336209,87802.0,87771.0,0.04556]
[1769358180373,0.01138939,87801.0,87771.0,0.04556]
[1769358180578,1.44336042,87790.0,87750.0,0.01139601]
[1769358180803,1.44336042,87790.0,87756.0,0.01139523]
[1769358180804,1.07197283,87790.0,87756.0,0.01139523]
[1769358180988,1.07197283,87790.0,87752.0,0.01139575]
[1769358181128,1.07197283,87790.0,87750.0,0.37138759]
[1769358181329,1.07197283,87790.0,87749.0,0.22048]
[1769358181330,1.44336042,87790.0,87749.0,0.22048]
[1769358181632,0.4536217,87807.0,87765.0,0.01139406]
[1769358181833,0.00010761,87790.0,87769.0,0.01139354]
[1769358182039,1.07197283,87825.0,87808.0,0.00975049]
[1769358182257,0.00010783,87822.0,87808.0,0.00942989]
[1769358182455,0.001,87809.0,87787.0,0.0113912]
[1769358182661,0.001,87809.0,87788.0,0.01594837]
[1769358182859,0.02084383,87822.0,87784.0,0.01139159]
[1769358183080,0.00010783,87822.0,87790.0,0.01139081]
[1769358183285,0.00010783,87822.0,87796.0,0.01139004]
[1769358183742,0.00010783,87822.0,87772.0,0.48511375]
[1769358183743,1.06955089,87821.0,87772.0,0.48511375]
[1769358183953,1.06955089,87821.0,87789.0,0.01139094]
[1769358184178,0.00010783,87822.0,87792.0,0.01139055]
[1769358184432,0.00010783,87822.0,87781.0,0.11845372]
[1769358184433,0.00010783,87822.0,87803.0,0.01138913]
[1769358184735,1.06955089,87841.0,87810.0,0.01138822]
[1769358184940,1.06955089,87841.0,87810.0,0.00010783]
[1769358185348,0.0119976,87858.0,87818.0,0.01138718]
[1769358185554,0.01754213,87857.0,87817.0,0.01138731]
[1769358185753,0.020736,87856.0,87821.0,0.01138679]
[1769358185972,0.00616,87855.0,87819.0,0.01138705]
[1769358186187,0.020736,87855.0,87817.0,0.01138731]
[1769358186402,0.0006156,87858.0,87818.0,0.05762155]
[1769358186598,0.0006156,87858.0,87832.0,0.01138537]
[1769358186928,1.06955089,87878.0,87843.0,0.01138394]
[1769358187089,0.01753954,87877.0,87839.0,0.01138446]
[1769358187288,0.11486904,87877.0,87842.0,0.01138407]
[1769358187535,0.11486904,87877.0,87839.0,0.0569223]
[1769358187536,0.11486904,87877.0,87839.0,0.01138446]
[1769358187848,0.01137967,87876.0,87835.0,0.01138498]
[1769358188047,0.00616,87875.0,87837.0,0.01138472]
[1769358188273,0.01138018,87872.0,87832.0,0.48511375]
[1769358188438,0.00616,87871.0,87833.0,0.06217373]
[1769358188615,0.01754005,87873.0,87835.0,0.01138498]
[1769358189038,0.01754005,87873.0,87834.0,0.01138511]
[1769358189039,0.01138161,87861.0,87832.0,0.002]
[1769358189255,0.11776278,87860.0,87832.0,0.002]
[1769358189465,0.11776278,87860.0,87821.0,0.01138679]
[1769358189619,0.11776278,87860.0,87825.0,0.01138627]
[1769358189834,0.11776278,87860.0,87819.0,0.18634705]
[1769358190042,0.11776278,87860.0,87821.0,0.01138679]
[1769358190242,0.02492387,87859.0,87822.0,0.10518144]
[1769358190449,0.00616,87860.0,87833.0,0.11845372]
[1769358190650,0.020736,87878.0,87840.0,0.01138433]
[1769358190836,0.006302,87876.0,87842.0,0.01138407]
[1769358191042,0.006302,87876.0,87841.0,0.0113842]
[1769358191458,0.01768167,87876.0,87838.0,0.01138459]
[1769358191662,0.0113807,87868.0,87830.0,0.12983935]
[1769358191864,0.00616,87869.0,87834.0,0.01138511]
[1769358192063,0.00616,87870.0,87840.0,0.01138433]
[1769358192258,0.00616,87870.0,87841.0,0.0113842]
[1769358192501,0.000142,87876.0,87844.0,0.01138381]
[1769358192713,0.000142,87876.0,87841.0,0.0113842]
[1769358192861,0.000142,87876.0,87840.0,0.01138433]
[1769358192862,0.01366913,87875.0,87840.0,0.01138433]
[1769358193063,0.00616,87874.0,87840.0,0.01138433]
[1769358193266,0.00616,87874.0,87841.0,0.0113842]
[1769358193483,0.00616,87874.0,87842.0,0.01138407]
[1769358193847,0.00616,87874.0,87838.0,0.01138459]
[1769358193981,0.00616,87874.0,87842.0,0.01138407]
[1769358194182,0.006302,87876.0,87841.0,0.0113842]
[1769358194384,0.006302,87876.0,87842.0,0.01138407]
[1769358194825,0.006302,87876.0,87839.0,0.05420583]
[1769358195029,0.006302,87876.0,87841.0,0.0113842]
[1769358195224,0.01087159,87875.0,87841.0,0.06987039]
[1769358195425,0.00616,87874.0,87841.0,0.06987039]
[1769358195951,0.006302,87876.0,87845.0,0.01138368]
[1769358196150,0.00616,87875.0,87841.0,0.1381756]
[1769358196531,0.000142,87876.0,87707.0,0.45001149]
[1769358196532,0.000142,87876.0,87848.0,0.01138329]
[1769358196743,0.000142,87876.0,87849.0,0.01138316]
[1769358196961,0.000142,87876.0,87845.0,0.45480757]
[1769358197270,0.000142,87876.0,87857.0,0.01138213]
[1769358197502,0.020736,87901.0,87862.0,0.01138148]
[1769358197679,0.00108865,87895.0,87866.0,0.01138096]
[1769358197912,0.00108865,87895.0,87878.0,0.01137941]
[1769358198187,0.00108865,87895.0,87870.0,0.46618801]
[1769358198389,0.00108865,87895.0,87873.0,0.01138005]
[1769358198568,0.00108865,87895.0,87870.0,0.46618801]
[1769358198766,0.00108865,87895.0,87870.0,0.45480757]
[1769358199141,0.00108865,87895.0,87830.0,0.528007]
[1769358199142,1.10694607,87895.0,87859.0,0.01138187]
[1769358199340,1.10694607,87895.0,87870.0,0.001]
[1769358200110,1.10694607,87895.0,87859.0,0.01138187]
[1769358200272,1.10694607,87895.0,87860.0,0.01138174]
[1769358200678,1.10694607,87895.0,87858.0,0.011382]
[1769358201062,0.08886368,87914.0,87853.0,0.62976757]
[1769358201063,1.10585742,87914.0,87895.0,0.00772564]
[1769358201243,1.10585742,87914.0,87884.0,0.01137863]
[1769358201244,0.00616,87913.0,87884.0,0.01137863]
[1769358201446,0.00014186,87914.0,87891.0,0.01137772]
[1769358201651,0.00014186,87914.0,87886.0,0.45480757]
[1769358202269,0.06281263,87923.0,87886.0,0.45480757]
[1769358202270,0.0003376,87917.0,87886.0,0.46618594]
[1769358202486,0.0003376,87917.0,87893.0,0.01137747]
[1769358202688,0.0003376,87917.0,87894.0,0.01023993]
[1769358203084,0.0003376,87917.0,87887.0,0.01137824]
[1769358203285,0.0003376,87917.0,87886.0,0.46665899]
[1769358203509,0.0003376,87917.0,87888.0,0.01137811]
[1769358203678,0.0003376,87917.0,87886.0,0.45528062]
[1769358204276,1.11723217,87914.0,87886.0,0.45528062]
[1769358204523,1.10585742,87914.0,87886.0,0.45528062]
[1769358204731,1.11723217,87914.0,87886.0,0.47761767]
[1769358204950,1.10585742,87914.0,87886.0,0.47761767]
[1769358205216,1.11723217,87914.0,87886.0,0.45528062]
[1769358205452,1.10585742,87914.0,87886.0,0.45528062]
[1769358205699,0.37127225,87910.0,87886.0,0.00047305]
[1769358205911,1.10585742,87909.0,87886.0,0.00047305]
[1769358207115,0.0003376,87917.0,87891.0,0.46618529]
[1769358207382,0.0003376,87917.0,87891.0,0.56641035]
[1769358208041,0.0003376,87917.0,87891.0,0.45480757]
[1769358208173,0.0003376,87917.0,87886.0,0.00047305]
[1769358208174,1.10585742,87916.0,87886.0,0.00047305]
[1769358208380,0.0003376,87917.0,87886.0,0.01185142]
[1769358208603,0.0003376,87917.0,87886.0,0.45528062]
[1769358208818,0.0003376,87917.0,87886.0,0.5668834]
[1769358209018,0.0003376,87917.0,87897.0,0.01137695]
[1769358209223,0.0003376,87917.0,87897.0,0.45480757]
[1769358209422,0.0003376,87917.0,87898.0,0.01137682]
[1769358209683,0.0003376,87917.0,87897.0,0.45480757]
[1769358210100,0.0003376,87917.0,87892.0,0.04556]
[1769358210288,0.00227436,87897.0,87892.0,0.04556]
[1769358210629,0.00616,87911.0,87892.0,0.04556]
[1769358210834,1.10585742,87909.0,87886.0,0.00047305]
[1769358211048,0.0383714,87916.0,87867.0,0.04556]
[1769358211049,1.10585742,87899.0,87867.0,0.04763661]
[1769358211323,0.37127225,87890.0,87867.0,0.04556]
[1769358211642,0.3826501,87890.0,87867.0,0.04556]
[1769358211845,0.01137682,87898.0,87868.0,0.0020783]
[1769358212061,1.10585742,87897.0,87868.0,0.0020783]